[Event "Gibraltar Masters 18th"]
[Site "Gibraltar"]
[Date "2020.01.29"]
[Round "9.29"]
[White "Studer, Noel"]
[Black "Khotenashvili, Bela"]
[Result "1-0"]
[ECO "C45"]
[WhiteElo "2546"]
[BlackElo "2446"]
[PlyCount "79"]
[EventDate "2020.01.21"]
[EventType "swiss"]
[EventRounds "10"]
[EventCountry "GGB"]
[SourceTitle "BritBase"]
[Source "John Saunders"]
[SourceDate "2021.06.05"]
[SourceVersion "1"]
[SourceVersionDate "2021.06.05"]
[SourceQuality "1"]
[TimeControl "40/100:0"]
[WhiteClock "0:08:55"]
[BlackClock "0:00:39"]

1. e4 {[%emt 0:00:00]} e5 {[%emt 0:00:00]} 2. Nf3 {[%emt 0:00:00]} Nc6 {
[%emt 0:00:00]} 3. d4 {[%emt 0:00:00]} exd4 {[%emt 0:00:00]} 4. Nxd4 {[%emt 0:
00:00]} Nf6 {[%emt 0:00:00]} 5. Nxc6 {[%emt 0:00:00]} bxc6 {[%emt 0:00:00]} 6.
e5 {[%emt 0:00:00]} Qe7 {[%emt 0:00:00]} 7. Qe2 {[%emt 0:00:00]} Nd5 {[%emt 0:
00:00]} 8. h4 {[%emt 0:00:00]} Qe6 {[%emt 0:00:00]} 9. Nd2 {[%emt 0:00:00]} a5
{[%emt 0:00:00]} 10. c4 {[%emt 0:00:00]} Nb6 {[%emt 0:00:00]} 11. Nf3 {[%emt 0:
00:00]} Bb4+ {[%emt 0:00:00]} 12. Bd2 {[%emt 0:00:00]} d5 {[%emt 0:00:00]} 13.
exd6 {[%emt 0:00:00]} Bxd2+ {[%emt 0:00:00]} 14. Kxd2 {[%emt 0:00:00]} cxd6 {
[%emt 0:00:00]} 15. Nd4 {[%emt 0:00:00]} Qxe2+ {[%emt 0:00:00]} 16. Bxe2 {
[%emt 0:00:00]} Bd7 {[%emt 0:00:00]} 17. Rac1 {[%emt 0:00:00]} c5 {[%emt 0:00:
00]} 18. Nb5 {[%emt 0:00:00]} Bxb5 {[%emt 0:00:00]} 19. cxb5 {[%emt 0:00:00]}
Ke7 {[%emt 0:00:00]} 20. Bf3 {[%emt 0:00:00]} Ra7 {[%emt 0:00:00]} 21. Rh3 {
[%emt 0:00:00]} h5 {[%emt 0:00:00]} 22. Rg3 {[%emt 0:00:00]} Kf8 {[%emt 0:00:
00]} 23. Rg5 {[%emt 0:00:00]} Re7 {[%emt 0:00:00]} 24. b3 {[%emt 0:00:00]} g6 {
[%emt 0:00:00]} 25. Bc6 {[%emt 0:00:00]} Re6 {[%emt 0:00:00]} 26. Rc3 {[%emt 0:
00:00]} Rh7 {[%emt 0:00:32]} 27. Rcg3 {[%emt 0:00:00]} Rf6 {[%emt 0:00:24]} 28.
Ke1 {[%emt 0:00:00]} Re6+ {[%emt 0:00:00]} 29. Kd1 {[%emt 0:00:00]} Rh8 {
[%emt 0:00:00]} 30. f4 {[%emt 0:00:00]} Rf6 {[%emt 0:00:00]} 31. Rf3 {[%emt 0:
00:00]} Rf5 {[%emt 0:00:07]} 32. Rxf5 {[%emt 0:00:00]} gxf5 {[%emt 0:00:00]}
33. Re3 {[%emt 0:00:00]} Kg7 {[%emt 0:00:00]} 34. Re7 {[%emt 0:00:00]} Rb8 {
[%emt 0:00:00]} 35. Ra7 {[%emt 0:00:00]} c4 {[%emt 0:00:00]} 36. Kc2 {[%emt 0:
00:00]} cxb3+ {[%emt 0:00:00]} 37. Kxb3 {[%emt 0:00:00]} d5 {[%emt 0:00:02]}
38. Rxa5 {[%emt 0:00:00]} d4 {[%emt 0:00:00]} 39. Kc2 {[%emt 0:00:00]} Kf6 {
[%emt 0:00:00]} 40. Kd3 {[%emt 0:00:00]} 1-0

[Event "Gibraltar Masters 18th"]
[Site "Gibraltar"]
[Date "2020.01.29"]
[Round "9.30"]
[White "Panjwani, Raja"]
[Black "Muzychuk, Anna"]
[Result "1-0"]
[ECO "A33"]
[WhiteElo "2444"]
[BlackElo "2539"]
[PlyCount "73"]
[EventDate "2020.01.21"]
[EventType "swiss"]
[EventRounds "10"]
[EventCountry "GGB"]
[SourceTitle "BritBase"]
[Source "John Saunders"]
[SourceDate "2021.06.05"]
[SourceVersion "1"]
[SourceVersionDate "2021.06.05"]
[SourceQuality "1"]
[TimeControl "40/100:0"]
[WhiteClock "0:07:54"]
[BlackClock "0:24:55"]

1. Nf3 {[%emt 0:00:00]} c5 {[%emt 0:00:00]} 2. c4 {[%emt 0:00:00]} Nc6 {
[%emt 0:00:00]} 3. d4 {[%emt 0:00:00]} cxd4 {[%emt 0:00:00]} 4. Nxd4 {[%emt 0:
00:00]} Nf6 {[%emt 0:00:00]} 5. Nc3 {[%emt 0:00:00]} e6 {[%emt 0:00:00]} 6. a3
{[%emt 0:00:00]} Bc5 {[%emt 0:00:00]} 7. Nb3 {[%emt 0:00:00]} Bb6 {[%emt 0:00:
00]} 8. c5 {[%emt 0:00:00]} Bc7 {[%emt 0:00:00]} 9. g3 {[%emt 0:00:00]} O-O {
[%emt 0:00:00]} 10. Bg2 {[%emt 0:00:00]} b6 {[%emt 0:00:00]} 11. O-O {[%emt 0:
00:00]} Be5 {[%emt 0:00:00]} 12. a4 {[%emt 0:00:00]} Rb8 {[%emt 0:00:00]} 13.
Be3 {[%emt 0:00:00]} Ng4 {[%emt 0:00:00]} 14. Bd2 {[%emt 0:00:00]} bxc5 {
[%emt 0:00:00]} 15. Nxc5 {[%emt 0:00:00]} Rxb2 {[%emt 0:00:00]} 16. Nd3 {
[%emt 0:00:00]} Rb8 {[%emt 0:00:00]} 17. Bxc6 {[%emt 0:00:00]} Bxc3 {[%emt 0:
00:00]} 18. Bxc3 {[%emt 0:00:00]} dxc6 {[%emt 0:00:00]} 19. h3 {[%emt 0:00:00]}
Nf6 {[%emt 0:00:00]} 20. Be5 {[%emt 0:00:00]} Ra8 {[%emt 0:00:00]} 21. Qc2 {
[%emt 0:00:00]} Qe7 {[%emt 0:00:00]} 22. Rfd1 {[%emt 0:00:00]} Rd8 {[%emt 0:00:
00]} 23. Qc5 {[%emt 0:00:00]} Qe8 {[%emt 0:00:00]} 24. Bxf6 {[%emt 0:00:00]}
gxf6 {[%emt 0:00:00]} 25. Nf4 {[%emt 0:00:00]} Ba6 {[%emt 0:00:00]} 26. Nh5 {
[%emt 0:00:00]} Kh8 {[%emt 0:00:00]} 27. Nxf6 {[%emt 0:00:00]} Qf8 {[%emt 0:00:
00]} 28. Qe5 {[%emt 0:00:00]} h6 {[%emt 0:00:00]} 29. Ne8+ {[%emt 0:00:00]} f6
{[%emt 0:00:00]} 30. Nxf6 {[%emt 0:00:00]} Qg7 {[%emt 0:00:00]} 31. Rxd8+ {
[%emt 0:00:00]} Rxd8 {[%emt 0:00:00]} 32. Rb1 {[%emt 0:00:00]} Qg5 {[%emt 0:00:
00]} 33. Qxe6 {[%emt 0:00:00]} Qg6 {[%emt 0:00:00]} 34. Rb4 {[%emt 0:00:00]}
Bxe2 {[%emt 0:00:00]} 35. Qe7 {[%emt 0:00:00]} Rc8 {[%emt 0:00:00]} 36. Rb7 {
[%emt 0:00:00]} Bd3 {[%emt 0:00:00]} 37. Qe5 {[%emt 0:00:00]} 1-0

[Event "Gibraltar Masters 18th"]
[Site "Gibraltar"]
[Date "2020.01.29"]
[Round "9.31"]
[White "Krishna, C R G."]
[Black "Baron, Tal"]
[Result "0-1"]
[ECO "E04"]
[WhiteElo "2436"]
[BlackElo "2529"]
[PlyCount "113"]
[EventDate "2020.01.21"]
[EventType "swiss"]
[EventRounds "10"]
[EventCountry "GGB"]
[SourceTitle "BritBase"]
[Source "John Saunders"]
[SourceDate "2021.06.05"]
[SourceVersion "1"]
[SourceVersionDate "2021.06.05"]
[SourceQuality "1"]
[TimeControl "40/100:0"]
[WhiteClock "0:44:56"]
[BlackClock "0:53:55"]

1. d4 {[%emt 0:00:00]} d5 {[%emt 0:00:00]} 2. c4 {[%emt 0:00:00]} e6 {[%emt 0:
00:00]} 3. Nf3 {[%emt 0:00:00]} Nf6 {[%emt 0:00:00]} 4. g3 {[%emt 0:00:00]}
dxc4 {[%emt 0:00:00]} 5. Bg2 {[%emt 0:00:00]} a6 {[%emt 0:00:00]} 6. O-O {
[%emt 0:00:00]} Nc6 {[%emt 0:00:00]} 7. e3 {[%emt 0:00:00]} Rb8 {[%emt 0:00:00]
} 8. Qe2 {[%emt 0:00:00]} b5 {[%emt 0:00:00]} 9. b3 {[%emt 0:00:00]} cxb3 {
[%emt 0:00:00]} 10. axb3 {[%emt 0:00:00]} Bd6 {[%emt 0:00:00]} 11. Bd2 {
[%emt 0:00:00]} O-O {[%emt 0:00:00]} 12. Rc1 {[%emt 0:00:00]} Bb7 {[%emt 0:00:
00]} 13. Ne1 {[%emt 0:00:00]} Nd5 {[%emt 0:00:00]} 14. Nd3 {[%emt 0:00:00]}
Nde7 {[%emt 0:00:00]} 15. Bc3 {[%emt 0:00:00]} f6 {[%emt 0:00:00]} 16. Nd2 {
[%emt 0:00:00]} e5 {[%emt 0:00:00]} 17. dxe5 {[%emt 0:00:00]} fxe5 {[%emt 0:00:
00]} 18. Ne4 {[%emt 0:00:00]} Nd5 {[%emt 0:00:00]} 19. Bb2 {[%emt 0:00:00]}
Ndb4 {[%emt 0:00:00]} 20. Nec5 {[%emt 0:00:00]} Nxd3 {[%emt 0:00:00]} 21. Nxd3
{[%emt 0:00:00]} Qd7 {[%emt 0:00:00]} 22. Nc5 {[%emt 0:00:00]} Bxc5 {[%emt 0:
00:00]} 23. Rxc5 {[%emt 0:00:00]} Rf6 {[%emt 0:00:00]} 24. Bd5+ {[%emt 0:00:00]
} Kh8 {[%emt 0:00:00]} 25. Be4 {[%emt 0:00:00]} Rbf8 {[%emt 0:00:00]} 26. f4 {
[%emt 0:00:00]} Re6 {[%emt 0:00:00]} 27. fxe5 {[%emt 0:01:06]} Nd8 {[%emt 0:00:
00]} 28. Bxb7 {[%emt 0:00:00]} Nxb7 {[%emt 0:00:00]} 29. Rc2 {[%emt 0:00:00]}
Rd8 {[%emt 0:00:00]} 30. b4 {[%emt 0:00:00]} h6 {[%emt 0:00:00]} 31. Bd4 {
[%emt 0:00:00]} Rc8 {[%emt 0:00:00]} 32. Rd1 {[%emt 0:00:00]} Nd8 {[%emt 0:00:
00]} 33. Bc5 {[%emt 0:00:02]} Qe8 {[%emt 0:00:00]} 34. Bd4 {[%emt 0:00:01]} Nc6
{[%emt 0:00:00]} 35. Rdc1 {[%emt 0:00:00]} Qg6 {[%emt 0:00:00]} 36. Qf3 {
[%emt 0:00:00]} Nxe5 {[%emt 0:00:00]} 37. Bxe5 {[%emt 0:00:00]} Rxe5 {[%emt 0:
00:00]} 38. Rc6 {[%emt 0:00:00]} Qg5 {[%emt 0:00:00]} 39. Rxc7 {[%emt 0:00:41]}
Rxc7 {[%emt 0:00:00]} 40. Rxc7 {[%emt 0:00:00]} Qxe3+ {[%emt 0:00:00]} 41. Qxe3
{[%emt 0:00:04]} Rxe3 {[%emt 0:00:00]} 42. Rc6 {[%emt 0:00:30]} Ra3 {[%emt 0:
00:00]} 43. Kg2 {[%emt 0:00:00]} Ra2+ {[%emt 0:00:00]} 44. Kg1 {[%emt 0:00:00]}
h5 {[%emt 0:00:00]} 45. h4 {[%emt 0:00:00]} Kh7 {[%emt 0:00:00]} 46. Kf1 {
[%emt 0:00:00]} g6 {[%emt 0:00:00]} 47. Kg1 {[%emt 0:00:00]} Kg7 {[%emt 0:00:
00]} 48. Kf1 {[%emt 0:00:00]} Kf7 {[%emt 0:00:00]} 49. Kg1 {[%emt 0:00:00]} Ra4
{[%emt 0:00:00]} 50. Kg2 {[%emt 0:00:00]} Rxb4 {[%emt 0:00:00]} 51. Rxa6 {
[%emt 0:00:00]} Rg4 {[%emt 0:00:00]} 52. Rd6 {[%emt 0:00:00]} Ke7 {[%emt 0:00:
00]} 53. Rd5 {[%emt 0:00:00]} b4 {[%emt 0:00:00]} 54. Kf3 {[%emt 0:00:00]} Ke6
{[%emt 0:00:00]} 55. Rd8 {[%emt 0:00:00]} Ke5 {[%emt 0:00:00]} 56. Rd7 {
[%emt 0:00:00]} Rc4 {[%emt 0:00:00]} 57. Rb7 {[%emt 0:00:00]} 0-1

[Event "Gibraltar Masters 18th"]
[Site "Gibraltar"]
[Date "2020.01.29"]
[Round "9.33"]
[White "Sadhwani, Raunak"]
[Black "Wemmers, Xander"]
[Result "1-0"]
[ECO "A29"]
[WhiteElo "2522"]
[BlackElo "2380"]
[PlyCount "79"]
[EventDate "2020.01.21"]
[EventType "swiss"]
[EventRounds "10"]
[EventCountry "GGB"]
[SourceTitle "BritBase"]
[Source "John Saunders"]
[SourceDate "2021.06.05"]
[SourceVersion "1"]
[SourceVersionDate "2021.06.05"]
[SourceQuality "1"]
[TimeControl "40/100:0"]

1. c4 {[%emt 0:03:44]} e5 {[%emt 0:00:10]} 2. Nc3 {[%emt 0:00:08]} Nf6 {
[%emt 0:00:15]} 3. Nf3 {[%emt 0:00:06]} Nc6 {[%emt 0:00:07]} 4. d3 {[%emt 0:00:
03]} h6 {[%emt 0:03:54]} 5. g3 {[%emt 0:04:50]} Bc5 {[%emt 0:04:34]} 6. Bg2 {
[%emt 0:00:57]} d6 {[%emt 0:01:26]} 7. O-O {[%emt 0:04:15]} O-O {[%emt 0:00:43]
} 8. Bd2 {[%emt 0:15:55]} a6 {[%emt 0:05:25]} 9. a3 {[%emt 0:06:03]} Re8 {
[%emt 0:09:06]} 10. b4 {[%emt 0:03:54]} Bb6 {[%emt 0:00:39]} 11. Rc1 {[%emt 0:
07:35]} Nd4 {[%emt 0:09:20]} 12. Nxd4 {[%emt 0:04:59]} Bxd4 {[%emt 0:00:19]}
13. e3 {[%emt 0:07:32]} Ba7 {[%emt 0:01:34]} 14. Nd5 {[%emt 0:08:49]} Nxd5 {
[%emt 0:06:10]} 15. cxd5 {[%emt 0:00:17]} Bd7 {[%emt 0:00:14]} 16. Qb3 {
[%emt 0:04:23]} Rc8 {[%emt 0:02:13]} 17. Kh1 {[%emt 0:02:46]} c5 {[%emt 0:07:
40]} 18. dxc6 {[%emt 0:00:52]} bxc6 {[%emt 0:00:32]} 19. f4 {[%emt 0:04:11]}
exf4 {[%emt 0:08:23]} 20. Rxf4 {[%emt 0:00:05]} d5 {[%emt 0:00:17]} 21. d4 {
[%emt 0:02:08]} Bb8 {[%emt 0:01:57]} 22. Rf2 {[%emt 0:00:21]} h5 {[%emt 0:04:
10]} 23. e4 {[%emt 0:01:25]} Be6 {[%emt 0:13:44]} 24. e5 {[%emt 0:00:18]} Ba7 {
[%emt 0:05:21]} 25. Qd3 {[%emt 0:06:15]} Qd7 {[%emt 0:02:48]} 26. Be3 {[%emt 0:
03:06]} Qb7 {[%emt 0:05:19]} 27. Bf3 {[%emt 0:01:37]} Qb5 {[%emt 0:01:34]} 28.
Qd2 {[%emt 0:01:16]} a5 {[%emt 0:04:06]} 29. Bg5 {[%emt 0:02:47]} Bf5 {[%emt 0:
02:43]} 30. Bxh5 {[%emt 0:01:51]} Be4+ {[%emt 0:00:10]} 31. Kg1 {[%emt 0:00:40]
} Bg6 {[%emt 0:00:23]} 32. Bxg6 {[%emt 0:02:06]} fxg6 {[%emt 0:00:10]} 33. bxa5
{[%emt 0:04:28]} c5 {[%emt 0:03:14]} 34. Rcf1 {[%emt 0:05:43]} Rf8 {[%emt 0:06:
24]} 35. e6 {[%emt 0:01:34]} cxd4 {[%emt 0:02:07]} 36. e7 {[%emt 0:01:50]} Rf5
{[%emt 0:00:35]} 37. g4 {[%emt 0:01:22]} Rxg5 {[%emt 0:00:28]} 38. Rf8+ {
[%emt 0:00:37]} Kh7 {[%emt 0:00:07]} 39. Qxg5 {[%emt 0:00:09]} d3+ {[%emt 0:00:
44]} 40. Kh1 {[%emt 0:00:14]} 1-0

[Event "Gibraltar Masters 18th"]
[Site "Gibraltar"]
[Date "2020.01.29"]
[Round "9.34"]
[White "Chigaev, Maksim"]
[Black "Chen, Qi B"]
[Result "0-1"]
[ECO "C45"]
[WhiteElo "2616"]
[BlackElo "2432"]
[PlyCount "98"]
[EventDate "2020.01.21"]
[EventType "swiss"]
[EventRounds "10"]
[EventCountry "GGB"]
[SourceTitle "BritBase"]
[Source "John Saunders"]
[SourceDate "2021.06.05"]
[SourceVersion "1"]
[SourceVersionDate "2021.06.05"]
[SourceQuality "1"]
[TimeControl "40/100:0"]
[WhiteClock "0:09:57"]
[BlackClock "0:03:04"]

1. e4 {[%emt 0:00:00]} e5 {[%emt 0:00:00]} 2. Nf3 {[%emt 0:00:00]} Nc6 {
[%emt 0:00:00]} 3. d4 {[%emt 0:00:00]} exd4 {[%emt 0:00:00]} 4. Nxd4 {[%emt 0:
00:00]} Bc5 {[%emt 0:00:00]} 5. Nxc6 {[%emt 0:00:00]} Qf6 {[%emt 0:00:00]} 6.
Qf3 {[%emt 0:00:00]} dxc6 {[%emt 0:00:00]} 7. Nc3 {[%emt 0:00:00]} Be6 {
[%emt 0:00:00]} 8. Be3 {[%emt 0:00:00]} Bb4 {[%emt 0:00:00]} 9. O-O-O {[%emt 0:
00:00]} Qe7 {[%emt 0:00:00]} 10. Bd4 {[%emt 0:00:00]} Nf6 {[%emt 0:00:00]} 11.
Be2 {[%emt 0:00:00]} Bc5 {[%emt 0:00:00]} 12. Bxc5 {[%emt 0:00:00]} Qxc5 {
[%emt 0:00:00]} 13. Qg3 {[%emt 0:00:00]} O-O {[%emt 0:00:00]} 14. f4 {[%emt 0:
00:00]} Bc4 {[%emt 0:00:00]} 15. e5 {[%emt 0:00:00]} Nd5 {[%emt 0:00:00]} 16.
Ne4 {[%emt 0:00:00]} Qb5 {[%emt 0:00:00]} 17. Bf3 {[%emt 0:00:00]} f5 {[%emt 0:
00:00]} 18. Ng5 {[%emt 0:00:00]} Nb4 {[%emt 0:00:00]} 19. b3 {[%emt 0:00:00]}
Qa5 {[%emt 0:00:00]} 20. bxc4 {[%emt 0:00:00]} Qxa2 {[%emt 0:00:00]} 21. Bd5+ {
[%emt 0:00:00]} cxd5 {[%emt 0:00:00]} 22. Qc3 {[%emt 0:00:00]} Qa5 {[%emt 0:00:
00]} 23. Kb2 {[%emt 0:00:00]} Qa2+ {[%emt 0:00:00]} 24. Kc1 {[%emt 0:00:00]} c5
{[%emt 0:00:00]} 25. cxd5 {[%emt 0:00:00]} Nxd5 {[%emt 0:00:00]} 26. Rxd5 {
[%emt 0:00:00]} Qxd5 {[%emt 0:00:00]} 27. Rd1 {[%emt 0:00:00]} Qa2 {[%emt 0:00:
00]} 28. Rd7 {[%emt 0:00:00]} Rad8 {[%emt 0:00:00]} 29. Rxb7 {[%emt 0:00:00]}
h6 {[%emt 0:00:00]} 30. e6 {[%emt 0:00:00]} Rd1+ {[%emt 0:00:00]} 31. Kxd1 {
[%emt 0:00:00]} Qd5+ {[%emt 0:00:00]} 32. Qd3 {[%emt 0:00:00]} Qxb7 {[%emt 0:
00:00]} 33. Nf7 {[%emt 0:00:00]} Qe7 {[%emt 0:00:00]} 34. Qxf5 {[%emt 0:00:00]}
Re8 {[%emt 0:00:00]} 35. Nxh6+ {[%emt 0:00:00]} gxh6 {[%emt 0:00:00]} 36. Qg6+
{[%emt 0:00:00]} Kh8 {[%emt 0:00:00]} 37. Qxh6+ {[%emt 0:00:00]} Qh7 {[%emt 0:
00:00]} 38. Qf6+ {[%emt 0:00:00]} Qg7 {[%emt 0:00:00]} 39. Qh4+ {[%emt 0:00:00]
} Kg8 {[%emt 0:00:00]} 40. f5 {[%emt 0:00:00]} Qxg2 {[%emt 0:00:00]} 41. Ke1 {
[%emt 0:00:00]} a5 {[%emt 0:00:00]} 42. Qf4 {[%emt 0:00:00]} Rd8 {[%emt 0:01:
32]} 43. e7 {[%emt 0:00:00]} Qg1+ {[%emt 0:00:00]} 44. Ke2 {[%emt 0:00:00]}
Qd1+ {[%emt 0:00:00]} 45. Kf2 {[%emt 0:00:00]} Rd2+ {[%emt 0:00:00]} 46. Kg3 {
[%emt 0:00:00]} Qg1+ {[%emt 0:00:00]} 47. Kh3 {[%emt 0:00:00]} Qg2+ {[%emt 0:
00:00]} 48. Kh4 {[%emt 0:00:00]} Qxh2+ {[%emt 0:00:00]} 49. Kg5 {[%emt 0:00:00]
} Qxf4+ {[%emt 0:00:00]} 0-1

[Event "Gibraltar Masters 18th"]
[Site "Gibraltar"]
[Date "2020.01.29"]
[Round "9.35"]
[White "Atalik, Ekaterina"]
[Black "Tregubov, Pavel V"]
[Result "1/2-1/2"]
[ECO "D02"]
[WhiteElo "2450"]
[BlackElo "2588"]
[PlyCount "86"]
[EventDate "2020.01.21"]
[EventType "swiss"]
[EventRounds "10"]
[EventCountry "GGB"]
[SourceTitle "BritBase"]
[Source "John Saunders"]
[SourceDate "2021.06.05"]
[SourceVersion "1"]
[SourceVersionDate "2021.06.05"]
[SourceQuality "1"]
[TimeControl "40/100:0"]
[WhiteClock "0:04:21"]
[BlackClock "0:25:03"]

1. d4 {[%emt 0:00:00]} Nf6 {[%emt 0:00:00]} 2. Nf3 {[%emt 0:00:00]} d5 {
[%emt 0:00:00]} 3. g3 {[%emt 0:00:00]} c5 {[%emt 0:00:00]} 4. Bg2 {[%emt 0:00:
00]} cxd4 {[%emt 0:00:00]} 5. O-O {[%emt 0:00:00]} Nc6 {[%emt 0:00:00]} 6. Nxd4
{[%emt 0:00:00]} e5 {[%emt 0:00:00]} 7. Nxc6 {[%emt 0:00:00]} bxc6 {[%emt 0:00:
00]} 8. c4 {[%emt 0:00:00]} Be6 {[%emt 0:00:00]} 9. Nc3 {[%emt 0:00:00]} Rc8 {
[%emt 0:00:00]} 10. cxd5 {[%emt 0:00:00]} cxd5 {[%emt 0:00:00]} 11. Qa4+ {
[%emt 0:00:00]} Qd7 {[%emt 0:00:00]} 12. Qxd7+ {[%emt 0:00:00]} Kxd7 {[%emt 0:
00:00]} 13. Rd1 {[%emt 0:00:00]} Bc5 {[%emt 0:00:00]} 14. Nxd5 {[%emt 0:00:00]}
Bxd5 {[%emt 0:00:00]} 15. Bxd5 {[%emt 0:00:00]} Nxd5 {[%emt 0:00:00]} 16. Rxd5+
{[%emt 0:00:00]} Ke6 {[%emt 0:00:00]} 17. Rd1 {[%emt 0:00:00]} Rhd8 {[%emt 0:
00:00]} 18. Rxd8 {[%emt 0:00:00]} Rxd8 {[%emt 0:00:00]} 19. Bg5 {[%emt 0:00:00]
} f6 {[%emt 0:00:00]} 20. Rc1 {[%emt 0:00:00]} Bb6 {[%emt 0:00:00]} 21. Be3 {
[%emt 0:00:00]} Bxe3 {[%emt 0:00:00]} 22. fxe3 {[%emt 0:00:00]} Rd2 {[%emt 0:
00:00]} 23. Kf2 {[%emt 0:00:00]} Rxb2 {[%emt 0:00:00]} 24. Rc6+ {[%emt 0:00:00]
} Kf5 {[%emt 0:00:00]} 25. Ra6 {[%emt 0:00:00]} Rb7 {[%emt 0:00:00]} 26. Ra4 {
[%emt 0:00:00]} h5 {[%emt 0:00:00]} 27. Kf3 {[%emt 0:00:00]} g5 {[%emt 0:00:00]
} 28. h3 {[%emt 0:00:00]} Rd7 {[%emt 0:00:00]} 29. g4+ {[%emt 0:00:00]} Kg6 {
[%emt 0:00:00]} 30. Ra6 {[%emt 0:00:00]} h4 {[%emt 0:00:00]} 31. a4 {[%emt 0:
00:00]} Rd1 {[%emt 0:00:00]} 32. Rxa7 {[%emt 0:00:00]} Rg1 {[%emt 0:00:00]} 33.
Rb7 {[%emt 0:00:00]} Rg3+ {[%emt 0:00:00]} 34. Kf2 {[%emt 0:00:00]} Rxh3 {
[%emt 0:00:00]} 35. Rb1 {[%emt 0:00:00]} Rh2+ {[%emt 0:00:00]} 36. Kf3 {
[%emt 0:00:00]} e4+ {[%emt 0:00:00]} 37. Kxe4 {[%emt 0:00:00]} Rg2 {[%emt 0:00:
00]} 38. Ra1 {[%emt 0:00:00]} h3 {[%emt 0:00:00]} 39. a5 {[%emt 0:00:00]} h2 {
[%emt 0:00:00]} 40. Rh1 {[%emt 0:00:00]} Rxg4+ {[%emt 0:00:00]} 41. Kf3 {
[%emt 0:00:00]} Ra4 {[%emt 0:00:00]} 42. Rxh2 {[%emt 0:00:00]} Rxa5 {[%emt 0:
00:00]} 43. e4 {[%emt 0:00:00]} Ra3+ {[%emt 0:00:00]} 1/2-1/2

[Event "Gibraltar Masters 18th"]
[Site "Gibraltar"]
[Date "2020.01.29"]
[Round "9.36"]
[White "Horvath, Dominik"]
[Black "Lalith, Babu M R"]
[Result "1/2-1/2"]
[ECO "E01"]
[WhiteElo "2449"]
[BlackElo "2558"]
[PlyCount "61"]
[EventDate "2020.01.21"]
[EventType "swiss"]
[EventRounds "10"]
[EventCountry "GGB"]
[SourceTitle "BritBase"]
[Source "John Saunders"]
[SourceDate "2021.06.05"]
[SourceVersion "1"]
[SourceVersionDate "2021.06.05"]
[SourceQuality "1"]
[TimeControl "40/100:0"]
[WhiteClock "0:53:45"]
[BlackClock "1:00:46"]

1. d4 {[%emt 0:00:00]} Nf6 {[%emt 0:00:00]} 2. c4 {[%emt 0:00:00]} e6 {[%emt 0:
00:00]} 3. g3 {[%emt 0:00:00]} c5 {[%emt 0:00:00]} 4. Nf3 {[%emt 0:00:00]} cxd4
{[%emt 0:00:00]} 5. Nxd4 {[%emt 0:00:00]} d5 {[%emt 0:00:00]} 6. Bg2 {[%emt 0:
00:00]} e5 {[%emt 0:00:00]} 7. Nf3 {[%emt 0:00:00]} d4 {[%emt 0:00:00]} 8. O-O
{[%emt 0:00:00]} Nc6 {[%emt 0:00:00]} 9. e3 {[%emt 0:00:00]} Bc5 {[%emt 0:00:
00]} 10. exd4 {[%emt 0:00:00]} exd4 {[%emt 0:00:00]} 11. Re1+ {[%emt 0:00:00]}
Be6 {[%emt 0:00:00]} 12. Ng5 {[%emt 0:00:00]} O-O {[%emt 0:00:00]} 13. Nxe6 {
[%emt 0:00:00]} fxe6 {[%emt 0:00:00]} 14. Nd2 {[%emt 0:00:00]} Qd6 {[%emt 0:00:
00]} 15. Ne4 {[%emt 0:00:00]} Nxe4 {[%emt 0:00:00]} 16. Bxe4 {[%emt 0:00:00]}
e5 {[%emt 0:00:00]} 17. a3 {[%emt 0:00:00]} Qf6 {[%emt 0:00:00]} 18. Rf1 {
[%emt 0:00:00]} a5 {[%emt 0:00:58]} 19. Qd3 {[%emt 0:00:00]} h6 {[%emt 0:00:00]
} 20. h4 {[%emt 0:00:00]} a4 {[%emt 0:00:00]} 21. Kg2 {[%emt 0:00:00]} Na5 {
[%emt 0:00:00]} 22. Bd2 {[%emt 0:00:00]} Nb3 {[%emt 0:00:00]} 23. Rae1 {
[%emt 0:00:00]} Nxd2 {[%emt 0:00:00]} 24. Qxd2 {[%emt 0:00:00]} Ra6 {[%emt 0:
00:00]} 25. f4 {[%emt 0:00:00]} exf4 {[%emt 0:00:00]} 26. Rxf4 {[%emt 0:00:00]}
Qd8 {[%emt 0:00:00]} 27. Rxf8+ {[%emt 0:00:00]} Qxf8 {[%emt 0:00:00]} 28. Rf1 {
[%emt 0:00:00]} Rf6 {[%emt 0:00:00]} 29. Rxf6 {[%emt 0:00:00]} Qxf6 {[%emt 0:
00:00]} 30. Bxb7 {[%emt 0:00:00]} Bd6 {[%emt 0:00:00]} 31. Bd5+ {[%emt 0:00:00]
} 1/2-1/2

[Event "Gibraltar Masters 18th"]
[Site "Gibraltar"]
[Date "2020.01.29"]
[Round "9.37"]
[White "Kobo, Ori"]
[Black "Ali Marandi, Cemil Can"]
[Result "1/2-1/2"]
[ECO "E20"]
[WhiteElo "2445"]
[BlackElo "2546"]
[PlyCount "60"]
[EventDate "2020.01.21"]
[EventType "swiss"]
[EventRounds "10"]
[EventCountry "GGB"]
[SourceTitle "BritBase"]
[Source "John Saunders"]
[SourceDate "2021.06.05"]
[SourceVersion "1"]
[SourceVersionDate "2021.06.05"]
[SourceQuality "1"]
[TimeControl "40/100:0"]
[WhiteClock "0:18:11"]
[BlackClock "0:43:00"]

1. d4 {[%emt 0:00:00]} d5 {[%emt 0:00:00]} 2. c4 {[%emt 0:00:00]} e6 {[%emt 0:
00:00]} 3. Nf3 {[%emt 0:00:00]} Nf6 {[%emt 0:00:00]} 4. g3 {[%emt 0:00:00]}
Bb4+ {[%emt 0:00:00]} 5. Nc3 {[%emt 0:00:00]} dxc4 {[%emt 0:00:00]} 6. Bg2 {
[%emt 0:00:00]} O-O {[%emt 0:00:00]} 7. O-O {[%emt 0:00:00]} Nc6 {[%emt 0:00:
00]} 8. Qa4 {[%emt 0:00:00]} Nd5 {[%emt 0:00:00]} 9. Qc2 {[%emt 0:00:00]} Be7 {
[%emt 0:00:00]} 10. Rd1 {[%emt 0:00:00]} Rb8 {[%emt 0:00:00]} 11. e4 {[%emt 0:
00:00]} Ncb4 {[%emt 0:00:00]} 12. Qe2 {[%emt 0:00:00]} Nxc3 {[%emt 0:00:00]}
13. bxc3 {[%emt 0:00:00]} Nd3 {[%emt 0:00:00]} 14. Ne5 {[%emt 0:00:00]} Nxc1 {
[%emt 0:00:00]} 15. Raxc1 {[%emt 0:00:00]} c5 {[%emt 0:00:00]} 16. Qxc4 {
[%emt 0:00:00]} Qc7 {[%emt 0:00:00]} 17. a4 {[%emt 0:00:00]} b6 {[%emt 0:00:00]
} 18. f4 {[%emt 0:00:00]} Bb7 {[%emt 0:00:00]} 19. d5 {[%emt 0:00:00]} exd5 {
[%emt 0:00:00]} 20. exd5 {[%emt 0:00:00]} Rbd8 {[%emt 0:00:00]} 21. a5 {
[%emt 0:00:00]} bxa5 {[%emt 0:00:00]} 22. Rb1 {[%emt 0:00:00]} Bd6 {[%emt 0:00:
00]} 23. Nc6 {[%emt 0:00:00]} Rde8 {[%emt 0:00:00]} 24. Nxa7 {[%emt 0:00:00]}
Bc8 {[%emt 0:00:00]} 25. Nxc8 {[%emt 0:00:00]} Rxc8 {[%emt 0:00:00]} 26. Qa4 {
[%emt 0:00:00]} Rb8 {[%emt 0:00:00]} 27. Re1 {[%emt 0:00:00]} g6 {[%emt 0:00:
00]} 28. Rxb8 {[%emt 0:00:00]} Rxb8 {[%emt 0:00:00]} 29. Re8+ {[%emt 0:00:00]}
Rxe8 {[%emt 0:00:00]} 30. Qxe8+ {[%emt 0:00:00]} Kg7 {[%emt 0:00:00]} 1/2-1/2